bitfinex/quotes_SOLUSD_20240814
["timestamp","ask_amount","ask_price","bid_price","bid_amount"]
[1723627550977,6.819,146.65,146.6,45.0]
[1723627551492,0.90705615,146.66,146.6,45.0]
[1723627551667,7.72575615,146.66,146.6,45.0]
[1723627552083,0.90705615,146.66,146.6,45.0]
[1723627553292,32.24705615,146.66,146.6,45.0]
[1723627553613,6.8201,146.63,146.6,45.0]
[1723627553791,6.8195,146.64,146.6,45.0]
[1723627553984,6.8192,146.65,146.6,45.0]
[1723627554510,6.8199,146.63,146.56,0.12549]
[1723627554716,6.8194,146.64,146.56,65.50196]
[1723627554888,32.24705615,146.66,146.56,65.50196]
[1723627555086,6.819,146.65,146.56,65.50196]
[1723627555384,6.8195,146.64,146.56,65.50196]
[1723627555809,6.8198,146.63,146.56,65.50196]
[1723627556883,31.34,146.64,146.56,20.0]
[1723627557103,6.8211,146.61,146.56,20.0]
[1723627558712,6.8205,146.62,146.56,20.0]
[1723627559215,6.8205,146.62,146.57,45.0]
[1723627561613,31.34,146.64,146.57,45.0]
[1723627561787,48.3893,146.64,146.56,20.0]
[1723627561987,31.34,146.64,146.56,20.0]
[1723627562194,31.34,146.64,146.57,45.0]
[1723627562392,38.1598,146.64,146.57,45.0]
[1723627563018,6.82,146.63,146.57,45.0]
[1723627564095,6.8203,146.62,146.57,45.0]
[1723627567323,6.8203,146.62,146.56,45.0]
[1723627568925,12.52,146.64,146.56,45.0]
[1723627569103,6.8201,146.63,146.57,0.37647]
[1723627569303,6.8205,146.62,146.57,0.25098]
[1723627570625,12.52,146.65,146.57,0.25098]
[1723627570801,12.52,146.65,146.58,0.12549]
[1723627571001,12.52,146.65,146.58,45.12549]
[1723627571204,12.52,146.65,146.59,0.25098]
[1723627571397,6.8199,146.63,146.58,45.0]
[1723627571600,6.8203,146.62,146.58,45.0]
[1723627572616,6.8211,146.61,146.58,45.0]
[1723627572925,6.8211,146.61,146.55,15.4038]
[1723627573221,6.8209,146.61,146.56,20.0]
[1723627573723,6.8205,146.62,146.56,20.0]
[1723627574301,6.8208,146.61,146.57,45.0]
[1723627575723,6.8225,146.58,146.55,15.4038]
[1723627575907,17.0512,146.62,146.52,2.68863581]
[1723627575908,6.8226,146.57,146.52,16.3451]
[1723627576228,6.8223,146.58,146.52,16.3451]
[1723627577313,6.8231,146.56,146.52,16.3451]
[1723627577631,6.8231,146.56,146.49,19.1156]
[1723627577835,6.8231,146.56,146.5,65.12549]
[1723627578140,6.8231,146.56,146.5,20.0]
[1723627578309,6.8227,146.57,146.5,20.0]
[1723627578514,6.8227,146.57,146.51,0.12549]
[1723627579640,6.8234,146.56,146.5,20.0]
[1723627580032,31.34,146.57,146.48,16.3451]
[1723627580340,6.8248,146.53,146.48,16.3451]
[1723627580928,6.8242,146.54,146.48,16.3451]
[1723627581336,6.8242,146.54,146.49,20.0]
[1723627581547,38.1636,146.55,146.49,20.0]
[1723627582648,6.8248,146.53,146.48,16.3451]
[1723627582854,6.8248,146.53,146.49,20.0]
[1723627583144,6.8248,146.53,146.48,16.3451]
[1723627583318,22.3673,146.56,146.49,45.0]
[1723627584247,6.8236,146.55,146.49,45.0]
[1723627585649,0.12549,146.58,146.5,0.25098]
[1723627585946,6.8227,146.57,146.5,0.25098]
[1723627586150,21.77369,146.6,146.51,0.12549]
[1723627586151,21.6482,146.6,146.51,0.12549]
[1723627586337,22.0956,146.6,146.51,51.53779]
[1723627586647,22.0956,146.6,146.52,20.25098]
[1723627586847,6.8218,146.59,146.53,45.0]
[1723627589954,6.8223,146.58,146.53,45.0]
[1723627590639,6.8226,146.57,146.53,45.0]
[1723627591754,6.8224,146.58,146.53,45.0]
[1723627595549,31.34,146.59,146.52,20.0]
[1723627595925,6.8231,146.56,146.52,20.0]
[1723627596853,6.8236,146.55,146.49,20.0]
[1723627597243,6.8232,146.56,146.49,20.0]
[1723627597754,6.8236,146.55,146.49,20.0]
[1723627597950,0.12549,146.58,146.49,20.0]
[1723627598250,6.8233,146.56,146.5,45.0]
[1723627598557,6.8233,146.56,146.51,20.0]
[1723627602054,19.3628,146.57,146.51,20.0]
[1723627602940,12.54,146.59,146.51,20.0]
[1723627603134,12.54,146.59,146.52,45.25098]
[1723627604254,15.274,146.6,146.52,57.79098]
[1723627604562,19.361,146.61,146.53,20.0]
[1723627604763,6.8213,146.6,146.54,45.0]
[1723627606460,19.3608,146.61,146.54,45.0]
[1723627606661,12.54,146.61,146.54,61.2346]
[1723627606967,6.8204,146.62,146.54,73.7746]
[1723627607263,6.8204,146.62,146.55,20.0]
[1723627607474,19.36,146.63,146.56,45.0]
[1723627607676,6.8204,146.62,146.56,45.0]
[1723627613368,6.8209,146.61,146.56,45.0]
[1723627615483,6.8214,146.6,146.55,20.0]
[1723627616362,6.8217,146.59,146.55,20.0]
[1723627617181,6.8214,146.6,146.55,20.0]
[1723627623096,6.8217,146.59,146.55,20.0]
[1723627623311,6.8214,146.6,146.55,20.0]
[1723627623479,19.3609,146.61,146.55,20.89958483]
[1723627624600,12.54,146.61,146.55,20.89958483]
[1723627625595,19.3608,146.61,146.55,20.89958483]
[1723627625905,6.8213,146.6,146.55,20.0]
[1723627626969,19.3609,146.61,146.55,20.89905274]
[1723627627628,19.3609,146.61,146.55,20.0]
[1723627629127,19.3609,146.61,146.55,21.36430574]
[1723627629331,19.3609,146.61,146.55,20.0]
[1723627629528,6.8214,146.6,146.55,20.0]
[1723627630212,12.54,146.61,146.55,21.36356098]
[1723627631415,12.54,146.61,146.56,45.0]
[1723627631617,6.8206,146.62,146.55,45.0]
[1723627633125,6.8208,146.61,146.55,45.0]
[1723627634129,19.3608,146.61,146.55,45.0]
[1723627634311,6.8213,146.6,146.55,45.0]
[1723627634514,6.8226,146.57,146.5,22.3666]
[1723627634715,6.8226,146.57,146.5,34.9066]
[1723627634910,12.54,146.59,146.5,34.9066]
[1723627634911,19.3621,146.59,146.5,34.9066]
[1723627635435,6.8227,146.57,146.5,34.9066]
[1723627636011,6.8227,146.57,146.51,20.0]
[1723627636436,6.8232,146.56,146.51,20.0]
[1723627636835,19.3628,146.57,146.51,20.0]
[1723627637828,19.3628,146.57,146.52,45.0]
[1723627638435,6.8236,146.55,146.52,45.0]
[1723627638614,6.8236,146.55,146.51,45.0]
[1723627641738,6.8233,146.56,146.51,45.0]
[1723627642724,6.8236,146.55,146.51,45.0]
[1723627643439,6.8231,146.56,146.51,45.0]
[1723627648940,6.8236,146.55,146.51,45.0]
[1723627649158,19.363,146.57,146.52,0.12549]
[1723627649353,6.823,146.57,146.52,0.12549]
[1723627649651,6.8223,146.58,146.52,0.12549]
[1723627649852,28.9996,146.59,146.52,0.12549]
[1723627650016,6.8235,146.56,146.52,0.12549]
[1723627650631,6.8236,146.55,146.52,0.12549]
[1723627651142,6.8233,146.56,146.52,0.12549]
[1723627657162,6.8236,146.55,146.51,45.0]
[1723627657656,6.824,146.54,146.51,45.0]
[1723627658382,12.54,146.56,146.51,45.0]
[1723627658555,29.598,146.56,146.46,21.7414]
[1723627658862,6.8247,146.53,146.46,21.7414]
[1723627659234,6.8247,146.53,146.46,34.2814]
[1723627659472,19.3642,146.54,146.46,34.2814]
[1723627659679,23.52707933,146.68,146.46,34.2814]
[1723627659680,33.5151,146.59,146.46,34.2814]
[1723627659842,6.8231,146.56,146.48,12.54]
[1723627660152,6.8228,146.57,146.49,45.37647]
[1723627660352,6.8231,146.56,146.49,65.37647]
[1723627664466,6.8241,146.54,146.49,65.37647]
[1723627664678,6.8241,146.54,146.49,65.25098]
[1723627664878,6.8237,146.55,146.49,65.25098]
[1723627670661,19.3632,146.56,146.49,65.25098]
[1723627672491,19.3615,146.6,146.52,19.27919]
[1723627672692,19.3615,146.6,146.53,65.25098]
[1723627672894,19.3615,146.6,146.54,1.36448481]
[1723627673096,19.3615,146.6,146.55,1.36451417]
[1723627673695,6.8217,146.59,146.55,1.36451417]
[1723627673995,12.54,146.6,146.53,65.25098]
[1723627674401,6.8221,146.59,146.53,65.25098]
[1723627676796,6.8221,146.59,146.53,45.25098]
[1723627678911,19.3614,146.6,146.53,45.25098]
[1723627680199,6.8217,146.59,146.53,45.25098]
[1723627680495,12.54,146.6,146.53,45.25098]
[1723627680694,19.3617,146.6,146.53,45.25098]
[1723627680891,6.8217,146.59,146.53,45.25098]
[1723627681274,19.3614,146.6,146.53,45.25098]
[1723627682300,19.3614,146.6,146.54,0.12549]
[1723627682898,6.8214,146.6,146.54,0.12549]
[1723627683102,6.8214,146.6,146.54,20.12549]
[1723627683300,6.8214,146.6,146.55,45.12549]
[1723627684896,6.8225,146.58,146.55,45.0]
[1723627685088,6.8225,146.58,146.54,20.0]
[1723627685287,6.8225,146.58,146.53,0.12549]
[1723627685288,6.8225,146.58,146.53,20.12549]
[1723627685488,6.8225,146.58,146.54,45.0]
[1723627686588,19.3619,146.59,146.54,45.0]
[1723627689709,12.54,146.61,146.54,45.0]
[1723627689926,22.0485,146.63,146.55,21.61253277]
[1723627690086,22.0485,146.63,146.56,45.0]
[1723627690087,34.5885,146.63,146.56,45.0]
[1723627690290,27.7684,146.63,146.56,45.0]
[1723627690491,22.0485,146.63,146.56,45.0]
[1723627690690,6.8201,146.63,146.57,0.12549]
[1723627690926,6.8203,146.62,146.57,0.12549]
[1723627691087,6.8203,146.62,146.56,45.0]
[1723627691993,6.8208,146.61,146.56,45.0]
[1723627692812,6.8213,146.6,146.55,20.0]
[1723627693010,6.8213,146.6,146.53,20.0]
[1723627693413,6.8218,146.59,146.53,20.0]
[1723627694310,6.8218,146.59,146.54,45.0]
[1723627694511,19.3612,146.61,146.54,45.0]
[1723627694713,19.3612,146.61,146.55,0.25098]
[1723627695621,6.8213,146.6,146.54,45.0]
[1723627696802,6.8217,146.59,146.54,45.0]
[1723627698843,6.8214,146.6,146.54,45.0]
[1723627704642,19.361,146.61,146.54,45.0]
[1723627705236,19.361,146.61,146.55,0.12549]
[1723627705821,6.821,146.61,146.55,0.12549]
[1723627706442,6.8205,146.62,146.55,0.12549]
[1723627706743,6.8205,146.62,146.55,0.25098]
[1723627707644,12.54,146.63,146.54,57.54]
[1723627707941,6.8215,146.6,146.54,45.0]
[1723627708128,12.54,146.61,146.54,45.0]
[1723627708319,6.8218,146.59,146.54,45.0]
[1723627708539,6.8214,146.6,146.54,45.0]
[1723627709244,6.8218,146.59,146.54,45.0]
[1723627711227,17.0498,146.63,146.54,45.0]
[1723627711228,6.8214,146.6,146.54,45.0]
[1723627713347,12.54,146.59,146.53,20.0]
[1723627713528,6.8222,146.58,146.53,20.0]
[1723627713729,12.54,146.59,146.53,20.0]
[1723627713935,6.8224,146.58,146.53,20.0]
[1723627714150,6.8224,146.58,146.52,20.0]
[1723627714350,19.3619,146.59,146.52,20.0]
[1723627714739,19.3619,146.59,146.53,45.0]
[1723627720555,6.8223,146.58,146.53,45.0]
[1723627722157,19.3618,146.59,146.53,45.0]
[1723627723150,12.54,146.59,146.53,45.0]
[1723627723735,19.362,146.59,146.53,45.0]
[1723627724861,6.5789,146.64,146.54,45.0]
[1723627725051,12.54,146.62,146.55,20.0]
[1723627725545,6.8215,146.6,146.55,20.0]
[1723627727369,6.8215,146.6,146.54,45.0]
[1723627727571,6.8215,146.6,146.52,12.66549]
[1723627727572,6.8215,146.6,146.53,45.0]
[1723627727754,6.8215,146.6,146.54,20.0]
[1723627728162,6.822,146.59,146.54,20.0]
[1723627728360,6.8222,146.58,146.54,20.0]
[1723627728662,19.3622,146.58,146.52,20.0]
[1723627731952,12.54,146.58,146.53,45.0]
[1723627732564,34.7827,146.6,146.53,45.0]
[1723627732763,27.9614,146.6,146.53,45.0]
[1723627732949,34.7827,146.6,146.53,45.0]
[1723627733343,15.4214,146.6,146.53,45.0]
[1723627733566,15.4214,146.6,146.54,0.25098]
[1723627734772,12.54,146.61,146.54,0.25098]
[1723627735088,19.3609,146.61,146.54,20.25098]
[1723627735268,6.8213,146.6,146.55,45.0]
[1723627735768,6.8213,146.6,146.54,45.25098]
[1723627736744,6.8218,146.59,146.54,45.0]
[1723627739169,6.8231,146.56,146.51,15.8482]
[1723627739465,12.54,146.59,146.47,29.1957]
[1723627739466,12.54,146.55,146.47,29.1957]
[1723627739657,12.54,146.55,146.48,8.19901423]
[1723627739972,6.8232,146.56,146.48,8.19901423]
[1723627740473,19.3632,146.56,146.48,8.19901423]
[1723627740652,19.3632,146.56,146.47,29.1957]
[1723627740653,19.3632,146.56,146.49,0.12549]
[1723627740854,12.54,146.56,146.47,16.6557]
[1723627741058,6.8242,146.54,146.47,16.6557]
[1723627741691,6.8242,146.54,146.48,8.1992426]
[1723627742172,12.54,146.52,146.48,8.1992426]
[1723627742378,6.8257,146.51,146.48,8.1992426]
[1723627742560,12.54,146.52,146.48,8.1992426]
[1723627742867,6.8257,146.51,146.44,8.1992426]
[1723627743375,6.8266,146.49,146.44,8.1992426]
[1723627743673,6.8266,146.49,146.43,16.041]
[1723627744058,19.3661,146.5,146.43,16.041]
[1723627744659,12.54,146.52,146.45,12.54]
[1723627744857,34.6715,146.54,146.46,1.35857265]
[1723627745064,34.6715,146.54,146.46,21.35857265]
[1723627745258,12.54,146.56,146.47,12.54]
[1723627745458,12.54,146.56,146.48,20.0]
[1723627745459,6.8242,146.54,146.48,20.0]
[1723627745652,6.8236,146.55,146.49,45.0]
[1723627745868,6.8234,146.56,146.49,45.0]
[1723627746178,6.8234,146.56,146.5,1.49015891]
[1723627747181,6.8236,146.55,146.5,0.12549]
[1723627747374,6.8236,146.55,146.49,45.0]
[1723627748650,6.8241,146.54,146.49,45.0]
[1723627749162,6.8237,146.55,146.49,45.0]
[1723627750288,6.8218,146.59,146.49,57.54]
[1723627750587,6.8222,146.58,146.5,20.25098]
[1723627750891,6.8222,146.58,146.51,57.54]
[1723627751059,6.8226,146.57,146.51,57.54]
[1723627751386,6.8233,146.56,146.51,45.0]
[1723627751557,6.8236,146.55,146.51,45.0]
[1723627752756,6.8236,146.55,146.5,20.0]
[1723627752757,6.824,146.54,146.5,20.0]
[1723627752955,19.3636,146.55,146.49,20.0]
[1723627753155,6.8235,146.56,146.5,45.0]
[1723627754581,6.8234,146.56,146.5,45.0]
[1723627756467,6.8242,146.54,146.49,20.0]
[1723627756868,19.3637,146.55,146.49,20.0]
[1723627757075,19.3637,146.55,146.48,16.1305]
[1723627757076,12.54,146.55,146.48,16.1305]
[1723627757279,6.8245,146.53,146.48,16.1305]
[1723627758163,6.8241,146.54,146.48,16.1305]
[1723627758465,6.8241,146.54,146.49,45.0]
[1723627759863,6.8246,146.53,146.49,45.0]
[1723627760570,6.8242,146.54,146.49,45.0]
[1723627760979,6.8233,146.56,146.49,45.0]
[1723627762381,18.6356,146.57,146.49,45.0]
[1723627762588,12.54,146.54,146.49,45.0]
[1723627763260,19.3643,146.54,146.49,45.0]
[1723627764380,12.54,146.54,146.48,16.1305]
[1723627765061,6.8247,146.53,146.48,16.1305]
[1723627766286,6.8247,146.53,146.46,6.3388]
[1723627766583,6.825,146.52,146.47,65.12549]
[1723627766962,6.8255,146.51,146.44,16.5906]
[1723627767269,6.8255,146.51,146.45,20.0]
[1723627767891,12.54,146.5,146.44,16.5906]
[1723627768087,6.8266,146.49,146.44,16.5906]
[1723627769183,6.826,146.5,146.44,16.5906]
[1723627769371,19.3656,146.51,146.45,45.0]
[1723627769565,6.826,146.5,146.45,45.0]
[1723627770388,6.8267,146.49,146.44,16.5906]
[1723627770595,19.3667,146.49,146.44,16.5906]
[1723627772471,12.54,146.49,146.45,1.36475673]
[1723627772673,12.54,146.49,146.45,46.36475706]
[1723627772898,6.8261,146.5,146.45,46.36475706]
[1723627773300,19.3667,146.49,146.45,45.0]
[1723627773524,6.827,146.48,146.42,6.5261]
[1723627773715,6.827,146.48,146.43,65.0]
[1723627773881,6.8278,146.46,146.43,45.0]
[1723627774198,6.8278,146.46,146.41,15.8022]
[1723627774771,19.3675,146.47,146.41,15.8022]
[1723627775189,6.8278,146.46,146.41,15.8022]
[1723627775402,6.8278,146.46,146.42,45.0]
[1723627775805,6.8278,146.46,146.41,15.8022]
[1723627776180,6.829,146.44,146.37,15.4978]
[1723627777639,19.3683,146.45,146.37,15.4978]
[1723627777810,19.3683,146.45,146.38,45.12549]
[1723627780344,6.8279,146.46,146.38,45.12549]
[1723627780650,6.8279,146.46,146.39,12.79098]
[1723627780944,6.8282,146.45,146.4,45.12549]
[1723627782137,6.8281,146.46,146.4,45.12549]
[1723627783264,21.8408,146.47,146.4,45.12549]
[1723627783420,6.8278,146.46,146.4,45.12549]
[1723627784218,18.13931858,146.52,146.41,6.4161]
[1723627784418,38.7137,146.53,146.43,12.54]
[1723627784633,12.54,146.52,146.44,0.12549]
[1723627784845,6.8257,146.51,146.44,65.25098]
[1723627785724,6.8259,146.5,146.44,65.25098]
[1723627788632,6.8255,146.51,146.44,65.25098]
[1723627790160,12.54,146.52,146.44,65.25098]
[1723627790367,6.826,146.5,146.44,65.25098]
[1723627791156,6.8257,146.51,146.44,65.25098]
[1723627791848,6.8259,146.5,146.44,65.25098]
[1723627792953,6.8255,146.51,146.44,65.25098]
[1723627793655,12.54,146.52,146.44,65.25098]
[1723627793875,12.54,146.52,146.44,45.25098]
[1723627794173,6.8265,146.49,146.44,0.25098]
[1723627794326,6.8265,146.49,146.44,20.25098]
[1723627794533,6.8269,146.48,146.45,45.0]
[1723627794829,6.8269,146.48,146.44,20.0]
[1723627795041,6.8265,146.49,146.44,20.0]
[1723627795866,19.3661,146.5,146.44,20.0]
[1723627796449,6.8254,146.51,146.44,20.0]
[1723627796635,19.3654,146.51,146.44,20.0]
[1723627796838,6.8241,146.54,146.46,0.12549]
[1723627797046,34.7374,146.57,146.47,27.7619]
[1723627797335,34.7374,146.57,146.48,65.37647]
[1723627798332,15.3747,146.57,146.49,12.66549]
[1723627798646,6.8223,146.58,146.5,65.37647]
[1723627799657,6.8227,146.57,146.5,65.37647]
[1723627799842,6.8227,146.57,146.5,65.25098]
[1723627800043,6.8227,146.57,146.5,65.12549]
[1723627800460,19.3627,146.57,146.5,65.12549]
[1723627800660,6.8233,146.56,146.5,65.12549]
[1723627801161,19.3627,146.57,146.5,65.12549]
[1723627802956,12.54,146.55,146.5,45.0]
[1723627803164,19.3639,146.55,146.47,21.7047]
[1723627803348,19.3639,146.55,146.48,45.25098]
[1723627803548,12.54,146.55,146.48,45.25098]
[1723627803750,12.54,146.57,146.49,0.12549]
[1723627804153,19.3628,146.57,146.49,0.12549]
[1723627804368,19.3628,146.57,146.49,20.12549]
[1723627804557,19.3628,146.57,146.5,45.25098]
[1723627807472,6.8215,146.6,146.51,0.12549]
[1723627807667,19.3615,146.6,146.51,0.25098]
[1723627807867,19.3615,146.6,146.52,0.25098]
[1723627808072,19.3615,146.6,146.52,45.25098]
[1723627808368,6.8217,146.59,146.52,45.25098]
[1723627808574,19.3625,146.58,146.52,45.0]
[1723627810349,19.3625,146.58,146.51,45.0]
[1723627811964,12.54,146.58,146.51,45.0]
[1723627812262,6.8219,146.59,146.52,0.25098]
[1723627813854,6.8222,146.58,146.52,0.25098]
[1723627815472,6.8213,146.6,146.53,16.02119]
[1723627815777,6.8213,146.6,146.54,65.25098]
[1723627816480,6.821,146.61,146.54,65.25098]
[1723627818264,19.3612,146.6,146.54,65.25098]
[1723627822768,12.54,146.6,146.54,65.25098]
[1723627825086,19.3613,146.6,146.54,65.25098]
[1723627825582,6.8222,146.58,146.53,15.8957]
[1723627825791,6.8243,146.54,146.5,16.2947]
[1723627826003,19.3643,146.54,146.5,16.2947]
[1723627826165,12.54,146.54,146.5,16.2947]
[1723627826499,12.54,146.54,146.46,12.54]
[1723627826500,6.8247,146.53,146.46,16.2947]
[1723627826676,19.365,146.52,146.46,16.2947]
[1723627827058,12.54,146.52,146.46,16.2947]
[1723627827358,19.3641,146.54,146.46,16.2947]
[1723627827567,6.2534,146.56,146.47,12.54]
[1723627827871,25.6169,146.56,146.47,12.54]
[1723627828075,18.7934,146.56,146.47,12.54]
[1723627828277,25.6169,146.56,146.48,65.25098]
[1723627828477,19.3635,146.56,146.48,65.25098]
[1723627828878,6.8237,146.55,146.48,65.25098]
[1723627830279,12.54,146.56,146.48,65.25098]
[1723627830460,19.3633,146.56,146.48,65.25098]
[1723627831266,6.8227,146.57,146.49,12.79098]
[1723627831578,6.8227,146.57,146.5,45.25098]
[1723627831783,6.8219,146.59,146.51,34.0116]
[1723627831981,6.8217,146.59,146.52,65.50196]
[1723627834667,6.8222,146.58,146.52,65.37647]
[1723627834879,12.54,146.59,146.52,65.25098]
[1723627835079,6.8223,146.58,146.52,65.25098]
[1723627835278,19.3619,146.59,146.52,65.25098]
[1723627835773,6.8222,146.58,146.52,65.25098]
[1723627839997,19.3618,146.59,146.52,65.25098]
[1723627840174,6.8213,146.6,146.52,65.25098]
[1723627841496,6.8217,146.59,146.52,65.25098]
[1723627841795,6.8217,146.59,146.52,45.25098]
[1723627845885,6.8222,146.58,146.52,45.25098]
[1723627846087,12.54,146.59,146.52,45.25098]
[1723627846397,6.8227,146.57,146.52,45.12549]
[1723627847591,6.8224,146.58,146.52,45.12549]
[1723627849780,12.54,146.6,146.52,45.12549]
[1723627849981,6.8212,146.6,146.53,20.12549]
[1723627850291,19.3609,146.61,146.54,45.0]
[1723627850892,6.8213,146.6,146.54,45.0]
[1723627856799,19.3609,146.61,146.54,45.0]
[1723627857002,6.8212,146.6,146.54,45.0]
[1723627859381,19.3608,146.61,146.54,45.0]
[1723627861690,6.8213,146.6,146.54,45.0]
[1723627862704,19.3608,146.61,146.54,45.0]
[1723627863385,6.8214,146.6,146.54,45.0]
[1723627863784,19.3609,146.61,146.54,45.0]
[1723627865303,6.8206,146.62,146.54,45.0]
[1723627865514,0.6645797,146.63,146.55,20.25098]
[1723627865813,13.2045797,146.63,146.56,45.0]
[1723627866180,20.0244797,146.63,146.56,45.0]
[1723627867096,0.6645797,146.63,146.57,16.3986]
[1723627867296,0.6645797,146.63,146.58,45.12549]
[1723627867820,0.6645797,146.63,146.59,20.25098]
[1723627868025,0.6645797,146.63,146.6,45.0]
[1723627876891,7.4846797,146.63,146.59,20.0]
[1723627877227,7.4846797,146.63,146.58,20.0]
[1723627877819,0.6645797,146.63,146.58,20.0]
[1723627878429,0.6645797,146.63,146.59,45.25098]
[1723627881346,0.6645797,146.63,146.59,57.79098]
[1723627881537,0.6645797,146.63,146.62,0.12549]
[1723627881844,0.6645797,146.63,146.62,65.50196]
[1723627888666,0.6645797,146.63,146.62,93.16426]
[1723627888965,0.07281385,146.66,146.64,0.12549]
[1723627889170,0.07281385,146.66,146.65,12.66549]
[1723627889348,0.07281385,146.66,146.65,78.04196]
[1723627893774,12.71127215,146.78,146.66,22.56369]
[1723627893967,12.71127215,146.78,146.71,0.12549]
[1723627894290,6.8151,146.74,146.71,45.25098]
[1723627894494,6.815,146.74,146.66,22.4382]
[1723627894659,6.815,146.74,146.67,20.12549]
[1723627894660,6.8156,146.73,146.67,20.12549]
[1723627895266,19.3549,146.74,146.67,20.12549]
[1723627895469,12.54,146.74,146.67,20.12549]
[1723627895762,13.3349,146.75,146.68,45.25098]
[1723627895967,13.3349,146.75,146.69,0.25098]
[1723627896175,13.3349,146.75,146.7,0.12549]
[1723627896789,6.8147,146.74,146.69,0.25098]
[1723627897094,6.8152,146.73,146.69,0.25098]
[1723627897288,12.54,146.74,146.67,20.0]
[1723627897492,12.54,146.72,146.63,12.54]
[1723627897688,6.8167,146.7,146.64,20.0]
[1723627897992,19.3558,146.72,146.64,20.0]
[1723627898175,12.54,146.72,146.64,20.0]
[1723627898792,12.54,146.72,146.65,0.12549]
[1723627899190,19.3557,146.72,146.65,0.37647]
[1723627899397,19.3557,146.72,146.66,0.12549]
[1723627899568,19.3557,146.72,146.66,20.37647]
[1723627899769,19.3557,146.72,146.67,45.0]
[1723627899971,19.3557,146.72,146.68,0.25098]
[1723627901369,6.8172,146.69,146.63,12.54]
[1723627901574,6.8172,146.69,146.64,20.0]
[1723627901793,6.8175,146.68,146.64,20.0]
[1723627901981,6.8175,146.68,146.61,12.54]
[1723627903195,6.8181,146.67,146.63,20.0]
[1723627903399,6.8181,146.67,146.61,20.0]
[1723627904069,6.8177,146.68,146.61,20.0]
[1723627905702,12.54,146.66,146.58,15.5294]
[1723627905871,6.8203,146.62,146.54,106.32959349]
[1723627906073,6.8203,146.62,146.55,12.54]
[1723627906496,6.8199,146.63,146.55,12.54]
[1723627907167,6.82,146.63,146.55,12.54]
[1723627907797,6.82,146.63,146.56,0.12549]
[1723627908213,6.82,146.63,146.56,65.50196]
[1723627908522,18.7249,146.64,146.56,65.50196]
[1723627908688,6.1849,146.64,146.58,0.12549]
[1723627908886,6.1849,146.64,146.58,65.50196]
[1723627910301,12.54,146.67,146.58,65.50196]
[1723627910513,19.3581,146.67,146.59,12.54]
[1723627910808,19.3581,146.67,146.6,65.37647]
[1723627911090,12.54,146.67,146.6,65.25098]
[1723627911298,6.819,146.65,146.6,65.25098]
[1723627911986,6.819,146.65,146.6,45.25098]
[1723627913905,6.8186,146.66,146.6,45.25098]
[1723627914912,6.8189,146.65,146.6,45.25098]
[1723627915340,6.8186,146.66,146.6,45.25098]
[1723627917830,6.8201,146.63,146.55,12.54]
[1723627918141,12.54,146.63,146.54,15.3819]
[1723627918514,6.821,146.61,146.54,15.3819]